bitfinex/quotes_SOLUSD_20250403
["timestamp","ask_amount","ask_price","bid_price","bid_amount"]
[1743693794033,9.28,113.81,113.77,39.48147904]
[1743693794750,30.69187904,113.79,113.74,39.48377904]
[1743693795120,30.69187904,113.78,113.74,8.7919]
[1743693795320,30.69187904,113.79,113.74,39.48377904]
[1743693795538,30.69187904,113.79,113.75,30.69187904]
[1743693795844,30.69187904,113.8,113.75,30.69187904]
[1743693796343,30.69187904,113.78,113.74,39.48377904]
[1743693796726,30.69187904,113.79,113.74,39.48377904]
[1743693797042,163.913972,113.81,113.76,8.7904]
[1743693797244,30.69187904,113.8,113.76,8.7904]
[1743693797745,30.69187904,113.79,113.75,39.48267904]
[1743693798448,30.69187904,113.79,113.75,8.7908]
[1743693798626,30.69187904,113.78,113.74,39.48337904]
[1743693798833,30.69187904,113.8,113.75,30.69187904]
[1743693799021,30.69187904,113.8,113.76,8.7904]
[1743693799945,49.62585104,113.81,113.76,39.48227904]
[1743693800120,9.28,113.79,113.76,39.48227904]
[1743693800828,9.28,113.79,113.76,8.7904]
[1743693801244,39.97187904,113.79,113.76,8.7904]
[1743693801448,39.97187904,113.79,113.75,8.7909]
[1743693801449,30.69187904,113.78,113.75,8.7909]
[1743693801747,9.28,113.79,113.75,30.69187904]
[1743693801929,18.0681,113.79,113.74,8.7919]
[1743693802246,18.0681,113.79,113.73,39.48427904]
[1743693802247,30.69187904,113.78,113.73,39.48427904]
[1743693802447,48.75997904,113.79,113.74,30.69187904]
[1743693802650,39.97187904,113.79,113.74,30.69187904]
[1743693802843,30.69187904,113.78,113.74,30.69187904]
[1743693803042,30.69187904,113.78,113.73,39.48427904]
[1743693803349,8.7896,113.77,113.73,39.48427904]
[1743693803537,39.48147904,113.77,113.72,30.69187904]
[1743693803852,30.69187904,113.74,113.7,8.795]
[1743693804162,49.62585104,113.72,113.67,1.6116]
[1743693804330,49.62585104,113.72,113.67,30.69187904]
[1743693804854,39.97187904,113.73,113.66,30.7935]
[1743693805058,9.28,113.73,113.69,30.69187904]
[1743693805233,48.76487904,113.73,113.69,30.69187904]
[1743693805636,39.97187904,113.73,113.69,39.48757904]
[1743693805832,30.69187904,113.72,113.69,8.7957]
[1743693806751,39.97187904,113.73,113.69,8.7957]
[1743693807150,48.76467904,113.73,113.69,8.7957]
[1743693807381,30.69187904,113.72,113.67,30.69187904]
[1743693808350,39.48547904,113.72,113.67,39.48897904]
[1743693809035,39.48547904,113.72,113.67,8.7971]
[1743693809457,39.48547904,113.72,113.67,30.69187904]
[1743693810352,30.69187904,113.72,113.67,30.69187904]
[1743693810652,49.62585104,113.72,113.67,30.69187904]
[1743693811051,9.28,113.73,113.68,30.69187904]
[1743693811253,39.97187904,113.73,113.68,30.69187904]
[1743693811636,9.28,113.73,113.69,39.48767904]
[1743693811954,9.28,113.72,113.69,27.99209793]
[1743693813555,9.28,113.72,113.69,49.98169793]
[1743693813737,9.28,113.72,113.66,8.7981]
[1743693813942,19.19629793,113.73,113.68,19.19629793]
[1743693814238,9.28,113.71,113.69,19.19629793]
[1743693814556,348.41629793,113.75,113.7,19.19629793]
[1743693814850,9.28,113.74,113.7,19.19629793]
[1743693815048,28.47629793,113.74,113.69,45.19629793]
[1743693815243,28.47629793,113.74,113.69,19.19629793]
[1743693815441,19.19629793,113.73,113.68,19.19629793]
[1743693815642,19.19629793,113.73,113.69,8.7958]
[1743693816052,27.98919793,113.73,113.68,27.99249793]
[1743693816358,19.19629793,113.72,113.68,8.7962]
[1743693816929,27.44254886,113.73,113.67,8.797]
[1743693816930,19.19629793,113.71,113.67,8.797]
[1743693817550,19.19629793,113.72,113.67,27.99329793]
[1743693817748,27.98989793,113.72,113.67,27.99329793]
[1743693817941,19.19629793,113.71,113.67,8.797]
[1743693818143,9.28,113.7,113.67,8.797]
[1743693819362,9.28,113.7,113.67,27.99329793]
[1743693819661,329.22,113.75,113.69,49.98169793]
[1743693819849,19.19629793,113.75,113.7,19.19629793]
[1743693820169,19.19629793,113.76,113.71,19.19629793]
[1743693820338,9.28,113.75,113.71,19.19629793]
[1743693821839,9.28,113.75,113.69,32.4448]
[1743693822042,9.28,113.75,113.71,19.19629793]
[1743693822561,19.19629793,113.77,113.72,19.19629793]
[1743693822743,9.28,113.76,113.72,19.19629793]
[1743693823463,350.08679793,113.78,113.73,19.19629793]
[1743693823664,28.47629793,113.77,113.72,45.19629793]
[1743693823846,348.43629793,113.78,113.74,19.19629793]
[1743693824039,19.19629793,113.79,113.74,19.19629793]
[1743693824266,9.28,113.78,113.75,19.19629793]
[1743693825953,9.28,113.78,113.76,8.7904]
[1743693826754,18.933972,113.81,113.76,8.7904]
[1743693826949,28.47629793,113.8,113.76,8.7904]
[1743693827267,9.28,113.8,113.76,27.98669793]
[1743693828280,28.47629793,113.8,113.76,8.7904]
[1743693831145,19.19629793,113.79,113.76,8.7904]
[1743693831868,19.19629793,113.79,113.75,8.7908]
[1743693832065,19.19629793,113.78,113.75,8.7908]
[1743693832265,19.19629793,113.78,113.74,19.19629793]
[1743693832266,19.19629793,113.77,113.72,8.7935]
[1743693832572,9.26,113.76,113.72,27.98979793]
[1743693833150,28.45629793,113.76,113.72,8.7935]
[1743693833470,19.19629793,113.75,113.72,8.7935]
[1743693835776,19.19629793,113.75,113.71,8.7943]
[1743693836455,19.19629793,113.74,113.7,8.7947]
[1743693836677,19.19629793,113.75,113.7,49.97859793]
[1743693836972,19.19629793,113.75,113.7,30.7823]
[1743693837166,19.19629793,113.75,113.7,49.97859793]
[1743693837364,19.19629793,113.75,113.7,30.7823]
[1743693837575,19.19629793,113.75,113.7,49.97859793]
[1743693838446,19.19629793,113.75,113.7,30.7823]
[1743693838674,19.19629793,113.74,113.7,30.7823]
[1743693838872,19.19629793,113.75,113.7,49.97859793]
[1743693839078,19.19629793,113.74,113.7,8.7947]
[1743693839261,8.7876,113.8,113.73,19.19629793]
[1743693839570,27.98389793,113.8,113.75,19.19629793]
[1743693839768,19.19629793,113.8,113.75,19.19629793]
[1743693839974,19.19629793,113.79,113.75,8.7912]
[1743693841471,44.935772,113.81,113.75,8.7912]
[1743693841472,19.19629793,113.8,113.75,8.7912]
[1743693841880,19.19629793,113.8,113.75,49.96549793]
[1743693842264,19.19629793,113.8,113.75,30.7692]
[1743693842459,19.19629793,113.8,113.75,49.96549793]
[1743693842678,9.26,113.81,113.78,19.19629793]
[1743693843271,9.26,113.81,113.79,19.19629793]
[1743693843588,9.26,113.81,113.78,19.19629793]
[1743693844166,9.26,113.81,113.79,8.7881]
[1743693844373,329.24,113.82,113.79,27.98439793]
[1743693844662,329.24,113.82,113.79,49.95459793]
[1743693844975,329.24,113.82,113.8,19.19629793]
[1743693845173,329.24,113.82,113.81,19.19629793]
[1743693845558,329.24,113.82,113.8,19.19629793]
[1743693845860,329.24,113.82,113.81,19.19629793]
[1743693846269,329.24,113.82,113.81,8.7865]
[1743693846462,19.19629793,113.87,113.81,49.94919793]
[1743693846665,16.6067,113.88,113.82,19.19629793]
[1743693846863,19.19629793,113.87,113.82,19.19629793]
[1743693847070,9.26,113.86,113.82,19.19629793]
[1743693847276,28.45629793,113.86,113.81,30.7529]
[1743693847484,28.45629793,113.86,113.81,8.7865]
[1743693847485,19.19629793,113.85,113.81,8.7865]
[1743693847872,19.19629793,113.85,113.81,27.98279793]
[1743693848071,28.45629793,113.86,113.81,8.7865]
[1743693848287,19.19629793,113.85,113.81,8.7865]
[1743693848586,19.19629793,113.83,113.79,19.19629793]
[1743693848758,9.26,113.82,113.79,19.19629793]
[1743693849667,9.26,113.82,113.79,27.98409793]
[1743693850668,9.26,113.82,113.79,8.7878]
[1743693850981,28.45629793,113.82,113.78,8.7884]
[1743693851185,9.26,113.82,113.78,27.98469793]
[1743693852395,19.19629793,113.8,113.76,19.19629793]
[1743693852688,19.19629793,113.8,113.75,19.19629793]
[1743693852877,19.19629793,113.79,113.75,8.7912]
[1743693853185,9.26,113.78,113.75,27.98749793]
[1743693853864,9.26,113.78,113.75,8.7912]
[1743693854489,19.19629793,113.77,113.73,8.7927]
[1743693854787,19.19629793,113.77,113.73,27.98899793]
[1743693855188,9.26,113.78,113.73,27.98899793]
[1743693855189,28.45629793,113.78,113.73,27.98899793]
[1743693855388,19.19629793,113.77,113.73,8.7927]
[1743693855888,19.19629793,113.75,113.71,8.7943]
[1743693856073,28.45629793,113.74,113.71,8.7943]
[1743693856267,9.26,113.74,113.71,8.7943]
[1743693856889,28.45629793,113.74,113.69,8.7958]
[1743693857191,19.19629793,113.72,113.69,8.7958]
[1743693857769,19.19629793,113.71,113.67,8.7973]
[1743693857976,28.45629793,113.7,113.67,8.7973]
[1743693858177,9.26,113.69,113.67,8.7973]
[1743693859691,28.45629793,113.69,113.64,21.998]
[1743693859907,28.45629793,113.69,113.64,8.7997]
[1743693860194,28.45629793,113.69,113.65,19.19629793]
[1743693860394,28.45629793,113.69,113.64,27.99599793]
[1743693860395,37.25229793,113.69,113.64,27.99599793]
[1743693860704,19.19629793,113.67,113.63,8.8003]
[1743693860882,19.19629793,113.66,113.62,14.9449]
[1743693861074,9.26,113.65,113.62,14.9449]
[1743693861282,9.26,113.65,113.62,34.14119793]
[1743693861788,9.26,113.65,113.62,14.9449]
[1743693861996,9.26,113.65,113.62,8.8009]
[1743693862190,30.75522745,113.64,113.61,8.8017]
[1743693862381,40.01522745,113.65,113.61,8.8017]
[1743693864396,30.75522745,113.63,113.58,30.75522745]
[1743693864694,9.26,113.62,113.58,39.55952745]
[1743693865206,9.26,113.62,113.59,30.75522745]
[1743693866203,9.26,113.62,113.6,8.8028]
[1743693867180,9.26,113.62,113.6,39.55802745]
[1743693867405,9.26,113.62,113.61,30.75522745]
[1743693867801,9.26,113.65,113.61,30.75522745]
[1743693868102,9.26,113.65,113.62,30.75522745]
[1743693868300,9.26,113.65,113.63,8.8004]
[1743693868600,30.75522745,113.67,113.63,8.8004]
[1743693868806,9.26,113.66,113.63,39.55562745]
[1743693868981,9.26,113.66,113.63,8.8004]
[1743693869182,40.01522745,113.66,113.63,8.8004]
[1743693869601,30.75522745,113.65,113.61,8.8017]
[1743693870004,40.01522745,113.66,113.62,30.75522745]
[1743693870502,40.01522745,113.66,113.62,39.55582745]
[1743693870716,40.01522745,113.66,113.62,8.8006]
[1743693871486,9.26,113.66,113.63,30.75522745]
[1743693871686,9.26,113.66,113.62,61.55892745]
[1743693872087,9.26,113.66,113.63,30.75522745]
[1743693872296,166.45522745,113.68,113.64,39.55492745]
[1743693872611,9.26,113.67,113.64,8.7997]
[1743693873983,30.75522745,113.68,113.64,39.55492745]
[1743693873984,9.26,113.68,113.64,39.55492745]
[1743693874187,9.26,113.68,113.64,61.55412745]
[1743693874383,9.26,113.68,113.65,30.75522745]
[1743693874607,30.75522745,113.7,113.65,30.75522745]
[1743693874887,9.26,113.69,113.65,30.75522745]
[1743693877112,40.01522745,113.69,113.64,61.55412745]
[1743693877285,9.26,113.69,113.65,30.75522745]
[1743693877486,9.26,113.7,113.67,30.75522745]
[1743693877905,338.36,113.71,113.67,30.75522745]
[1743693878907,338.36,113.71,113.68,8.7966]
[1743693879115,329.1,113.71,113.68,8.7966]
[1743693879291,338.34,113.71,113.68,8.7966]
[1743693880101,369.09522745,113.71,113.68,8.7966]
[1743693881108,369.09522745,113.71,113.67,8.7973]
[1743693881615,30.75522745,113.7,113.67,8.7973]
[1743693881991,19.2088972,113.7,113.67,8.7973]
[1743693882191,357.5488972,113.71,113.67,8.7973]
[1743693882403,338.34,113.71,113.67,28.0061972]
[1743693882691,338.34,113.71,113.68,19.2088972]
[1743693882898,338.34,113.71,113.67,49.9995972]
[1743693883699,329.1,113.71,113.67,49.9995972]
[1743693883918,338.34,113.71,113.67,49.9995972]
[1743693885405,338.34,113.71,113.69,19.2088972]
[1743693885728,329.1,113.71,113.69,19.2088972]
[1743693885932,9.24,113.76,113.7,19.2088972]
[1743693886096,329.34,113.78,113.74,19.2088972]
[1743693887202,329.34,113.78,113.75,8.7912]
[1743693888418,19.2088972,113.76,113.71,41.1937972]
[1743693888607,9.24,113.75,113.71,41.1937972]
[1743693889720,9.24,113.75,113.72,8.7935]
[1743693890713,28.4488972,113.75,113.72,8.7935]
[1743693891619,19.2088972,113.73,113.67,23.4999]
[1743693891821,19.2088972,113.73,113.68,28.0054972]
[1743693892005,19.2088972,113.73,113.68,49.9969972]
[1743693892606,9.24,113.75,113.69,19.2088972]
[1743693892812,28.4488972,113.75,113.71,19.2088972]
[1743693893214,9.24,113.74,113.72,19.2088972]
[1743693893425,9.24,113.74,113.68,74.91336157]
[1743693893426,9.24,113.74,113.73,19.2088972]
[1743693893914,9.24,113.77,113.74,8.7919]
[1743693894113,9.24,113.77,113.75,19.2088972]
[1743693894707,9.24,113.77,113.74,49.9806972]
[1743693895221,329.34,113.78,113.75,19.2088972]
[1743693895422,329.34,113.78,113.76,19.2088972]
[1743693895725,9.24,113.79,113.76,19.2088972]
[1743693895926,9.24,113.79,113.76,30.67829394]
[1743693897212,30.67829394,113.82,113.78,30.67829394]
[1743693897427,30.67829394,113.83,113.78,30.67829394]
[1743693897710,9.24,113.82,113.79,30.67829394]
[1743693897920,9.24,113.82,113.8,8.7873]
[1743693899536,39.91829394,113.82,113.79,8.7878]
[1743693900038,39.91829394,113.82,113.78,61.43779394]
[1743693900344,39.91829394,113.82,113.77,8.7894]
[1743693900345,30.67829394,113.81,113.77,8.7894]
[1743693900628,30.67829394,113.8,113.76,8.7901]
[1743693900815,30.67829394,113.79,113.76,8.7901]
[1743693901004,39.91829394,113.78,113.74,8.7919]
[1743693901407,30.67829394,113.77,113.74,8.7919]
[1743693901608,30.67829394,113.76,113.72,8.7931]
[1743693901820,30.67829394,113.75,113.72,8.7931]
[1743693902013,9.22,113.74,113.72,8.7931]
[1743693902411,9.22,113.74,113.73,30.67829394]
[1743693903547,9.22,113.74,113.72,39.47139394]
[1743693904346,9.22,113.74,113.72,8.7931]
[1743693904847,9.22,113.74,113.72,39.47139394]
[1743693905019,9.22,113.77,113.73,30.67829394]
[1743693905329,9.22,113.77,113.74,30.67829394]
[1743693905917,9.22,113.77,113.75,30.67829394]
[1743693906121,30.67829394,113.81,113.76,30.67829394]
[1743693906312,30.67829394,113.81,113.78,8.7888]
[1743693906313,9.22,113.79,113.78,8.7888]
[1743693906719,329.22,113.84,113.78,39.46709394]
[1743693906926,338.44,113.84,113.8,30.67829394]
[1743693907339,329.22,113.84,113.8,30.67829394]
[1743693907635,9.22,113.83,113.79,30.67829394]
[1743693908010,359.89829394,113.84,113.8,30.67829394]
[1743693908011,329.22,113.84,113.8,30.67829394]
[1743693908217,329.22,113.84,113.81,8.7865]
[1743693908218,9.22,113.83,113.81,8.7865]
[1743693908546,9.22,113.83,113.81,39.46479394]
[1743693908719,329.22,113.84,113.82,30.67829394]
[1743693909561,329.22,113.84,113.81,61.43119394]
[1743693909928,329.22,113.84,113.81,39.46479394]
[1743693910448,329.22,113.84,113.81,61.43119394]
[1743693910649,329.22,113.84,113.81,30.7529]
[1743693910851,329.22,113.84,113.81,61.43119394]
[1743693911343,329.22,113.84,113.81,8.7865]
[1743693911846,9.22,113.85,113.81,15.2532]
[1743693912049,9.22,113.85,113.81,45.93149394]
[1743693912539,9.22,113.85,113.81,67.89789394]
[1743693913053,9.22,113.85,113.81,39.46479394]
[1743693913754,9.22,113.85,113.82,30.67829394]
[1743693914739,9.22,113.85,113.83,8.785]
[1743693914940,9.22,113.86,113.83,39.46329394]
[1743693915130,9.22,113.86,113.83,61.42579394]
[1743693915338,356.48884886,113.91,113.85,30.67829394]
[1743693915524,39.89829394,113.9,113.85,30.67829394]
[1743693916144,329.06,113.91,113.83,81.10726157]
[1743693916345,9.22,113.9,113.86,30.67829394]
[1743693916537,329.06,113.91,113.89,8.7804]
[1743693916742,157.6361,113.97,113.89,8.7804]
[1743693916743,6.3864,113.96,113.9,30.67829394]
[1743693916940,30.67829394,113.95,113.9,30.67829394]
[1743693917246,9.22,113.94,113.89,61.40969394]
[1743693917453,30.67829394,113.93,113.89,30.7314]
[1743693917641,30.67829394,113.93,113.89,8.7804]
[1743693917832,30.67829394,113.92,113.88,8.7811]
[1743693918033,30.67829394,113.9,113.85,30.67829394]
[1743693918238,9.22,113.89,113.85,30.67829394]
[1743693918544,39.89829394,113.89,113.84,39.46249394]
[1743693918745,30.67829394,113.88,113.84,8.7842]
[1743693919047,30.67829394,113.86,113.82,8.7854]
[1743693919244,30.67829394,113.86,113.81,30.67829394]
[1743693919245,39.89829394,113.85,113.81,39.46449394]
[1743693919430,39.89829394,113.85,113.81,8.7862]
[1743693919635,30.67829394,113.84,113.81,8.7862]
[1743693920333,9.22,113.85,113.81,8.7862]
[1743693920534,30.67829394,113.84,113.8,8.7873]
[1743693920740,9.22,113.85,113.77,36.68539394]
[1743693920741,30.67829394,113.82,113.77,36.68539394]
[1743693920945,9.22,113.81,113.78,30.67829394]
[1743693921646,9.22,113.81,113.77,6.0071]
[1743693921854,9.22,113.81,113.78,39.46679394]
[1743693922148,9.22,113.81,113.78,30.67829394]
[1743693922449,9.22,113.81,113.79,30.67829394]
[1743693922658,9.22,113.81,113.8,30.67829394]
[1743693922830,9.22,113.84,113.8,30.67829394]
[1743693923638,30.67829394,113.83,113.79,30.67829394]
[1743693923846,30.67829394,113.83,113.8,8.7873]
[1743693925864,39.89829394,113.84,113.8,8.7873]
[1743693926069,30.67829394,113.84,113.8,8.7873]
[1743693926362,30.67829394,113.87,113.82,30.67829394]
[1743693926568,337.6607,113.89,113.82,30.67829394]
[1743693926862,337.6607,113.89,113.83,30.67829394]
[1743693926863,9.2,113.86,113.83,30.67829394]
[1743693927173,9.2,113.86,113.82,30.67829394]
[1743693927342,9.2,113.86,113.83,30.67829394]
[1743693927538,9.2,113.86,113.81,0.14216157]
[1743693927738,9.2,113.86,113.82,30.67829394]
[1743693928160,9.2,113.86,113.83,39.46329394]
[1743693928371,9.2,113.86,113.84,30.67829394]
[1743693928536,359.55829394,113.89,113.84,30.67829394]
[1743693928843,9.2,113.88,113.84,30.67829394]
[1743693929044,39.87829394,113.88,113.83,61.42579394]
[1743693929246,9.2,113.88,113.84,30.67829394]
[1743693929450,39.87829394,113.88,113.83,61.42579394]
[1743693929660,9.2,113.88,113.84,30.67829394]
[1743693929861,9.2,113.88,113.85,30.67829394]
[1743693930273,39.87829394,113.88,113.84,8.7842]
[1743693932674,30.67829394,113.87,113.84,8.7842]
[1743693933336,30.67829394,113.87,113.81,22.10776157]
[1743693933337,0.28432314,113.87,113.81,8.7865]
[1743693933544,0.28432314,113.87,113.77,8.7896]
[1743693933545,30.67829394,113.82,113.77,8.7896]
[1743693933746,9.2,113.81,113.77,61.44199394]
[1743693934860,39.87829394,113.81,113.77,8.7896]
[1743693935049,39.87829394,113.8,113.77,8.7896]
[1743693935650,30.67829394,113.79,113.76,8.79]
[1743693935850,30.67829394,113.79,113.75,52.65539394]
[1743693935851,30.67829394,113.78,113.75,8.7908]
[1743693936241,30.67829394,113.78,113.74,39.47019394]
[1743693936859,30.67829394,113.79,113.74,30.7718]
[1743693937163,30.67829394,113.79,113.74,61.45009394]
[1743693938146,30.67829394,113.78,113.74,30.7718]
[1743693938775,30.67829394,113.79,113.74,61.45009394]
[1743693938965,9.2,113.8,113.76,30.67829394]
[1743693939280,1.5558,113.84,113.78,30.67829394]
[1743693939465,9.2,113.81,113.78,30.67829394]
[1743693940359,9.2,113.81,113.8,8.7873]
[1743693942065,9.2,113.81,113.79,8.7877]
[1743693942272,39.87829394,113.81,113.79,8.7877]
[1743693942464,39.87829394,113.81,113.77,8.7896]
[1743693942659,9.2,113.81,113.77,39.46789394]
[1743693942865,9.2,113.81,113.77,61.44199394]
[1743693943068,39.87829394,113.81,113.77,30.7637]
[1743693943564,9.2,113.81,113.77,61.44199394]
[1743693944085,39.87829394,113.81,113.77,61.44199394]
[1743693945076,135.7,113.86,113.79,30.67829394]
[1743693945384,30.67829394,113.86,113.81,30.67829394]
[1743693945584,328.96,113.87,113.82,30.67829394]
[1743693945891,9.2,113.86,113.83,30.67829394]
[1743693946254,328.96,113.87,113.82,30.67829394]
[1743693946673,359.63829394,113.87,113.83,8.785]
[1743693947164,357.13829394,113.87,113.83,8.785]
[1743693947365,357.13829394,113.87,113.83,30.7475]
[1743693947567,326.46,113.87,113.84,30.67829394]
[1743693948271,326.46,113.87,113.83,30.7475]
[1743693948466,357.13829394,113.87,113.83,30.7475]
[1743693948860,357.13829394,113.87,113.83,8.785]
[1743693949068,30.67829394,113.86,113.83,8.785]
[1743693950004,357.13829394,113.87,113.83,8.785]
[1743693951061,30.67829394,113.87,113.83,8.785]
[1743693951790,30.67829394,113.85,113.83,8.785]
[1743693952087,30.67829394,113.84,113.81,8.7865]
[1743693952502,9.2,113.83,113.81,8.7865]
[1743693952683,9.2,113.83,113.81,61.43119394]
[1743693953603,9.2,113.83,113.82,30.67829394]
[1743693954469,359.57829394,113.88,113.82,49.47010437]
[1743693954687,9.2,113.87,113.83,30.67829394]
[1743693954988,9.2,113.87,113.84,8.7842]
[1743693955290,359.57829394,113.88,113.84,8.7842]
[1743693955291,359.57829394,113.88,113.84,61.42309394]
[1743693955672,338.1,113.88,113.84,61.42309394]
[1743693957087,328.9,113.88,113.84,30.7448]
[1743693957290,328.9,113.88,113.85,30.67829394]
[1743693957291,9.2,113.88,113.85,30.67829394]
[1743693957487,39.87829394,113.9,113.85,30.67829394]
[1743693957793,30.67829394,113.89,113.84,30.7448]
[1743693957968,30.67829394,113.89,113.85,30.67829394]
[1743693958367,39.87829394,113.9,113.84,30.7448]
[1743693958597,30.67829394,113.89,113.85,30.67829394]
[1743693958889,9.2,113.9,113.86,8.7827]
[1743693959074,39.87829394,113.9,113.86,8.7827]
[1743693959689,9.2,113.9,113.86,8.7827]
[1743693959893,39.87829394,113.9,113.86,8.7827]
[1743693960282,30.67829394,113.89,113.86,8.7827]
[1743693961692,39.87829394,113.9,113.86,30.7394]
[1743693961882,39.87829394,113.9,113.86,61.41769394]
[1743693962406,332.53,113.95,113.89,30.82045551]
[1743693962608,332.53,113.95,113.92,30.67829394]
[1743693962609,341.71,113.95,113.92,30.67829394]
[1743693962888,341.71,113.95,113.9,8.1581]
[1743693962889,30.67829394,113.98,113.93,30.67829394]
[1743693963091,30.67829394,113.98,113.91,18.64964886]
[1743693963092,9.18,113.97,113.94,30.67829394]
[1743693963675,9.18,113.98,113.95,30.67829394]
[1743693963879,9.18,113.99,113.94,26.0]
[1743693964079,9.18,113.99,113.95,30.67829394]
[1743693964287,15.2161,114.06,113.95,30.7149]
[1743693964481,30.67829394,114.02,113.98,30.67829394]
[1743693964673,30.67829394,114.02,113.97,30.67829394]
[1743693964878,30.67829394,114.02,113.98,30.67829394]
[1743693965288,30.67829394,114.01,113.96,30.67829394]
[1743693965994,30.67829394,114.01,113.97,8.7742]
[1743693966300,0.14216157,114.02,113.97,8.7742]
[1743693966473,30.67829394,114.01,113.97,8.7742]
[1743693966679,30.67829394,113.99,113.95,8.7757]
[1743693966899,9.18,114.0,113.96,30.67829394]
[1743693967393,9.18,114.0,113.97,30.67829394]
[1743693967872,9.18,114.0,113.98,8.7734]
[1743693968075,9.18,114.02,113.98,39.45169394]
[1743693969382,39.85829394,114.02,113.98,8.7734]
[1743693970295,30.67829394,114.01,113.98,8.7734]
[1743693970695,30.67829394,114.0,113.97,8.7738]
[1743693972014,30.67829394,114.01,113.96,30.67829394]
[1743693972310,30.67829394,114.0,113.95,8.7757]
[1743693972531,30.67829394,113.96,113.92,39.45629394]
[1743693972677,39.85829394,113.95,113.92,8.778]
[1743693972880,9.18,113.94,113.92,8.778]
[1743693973418,9.18,113.94,113.91,8.7788]
[1743693973419,39.85829394,113.94,113.91,8.7788]
[1743693973714,9.18,113.94,113.91,8.7788]
[1743693974004,9.18,113.94,113.91,39.45709394]
[1743693974296,9.18,113.95,113.92,30.67829394]
[1743693974517,9.18,113.96,113.93,30.67829394]
[1743693975384,9.18,113.96,113.95,30.67829394]
[1743693975791,365.38449394,114.0,113.95,30.67829394]
[1743693975792,9.18,113.99,113.95,30.67829394]
[1743693975998,9.18,113.99,113.96,30.67829394]
[1743693977040,9.18,113.99,113.95,39.45399394]
[1743693977041,39.85829394,113.99,113.95,39.45399394]
[1743693977341,30.67829394,113.97,113.94,8.7765]
[1743693977846,0.28432314,113.98,113.94,8.7765]
[1743693978013,30.67829394,113.98,113.93,61.39879394]
[1743693978334,9.18,113.99,113.94,30.82045551]
[1743693978335,39.85829394,113.99,113.94,30.82045551]
[1743693978509,143.7645,114.08,113.98,0.14216157]
[1743693978711,143.7645,114.08,114.0,30.82045551]
[1743693979022,30.67829394,114.05,114.01,30.67829394]
[1743693979226,30.67829394,114.02,113.97,6.0703]
[1743693979535,9.18,114.01,113.97,56.67829394]
[1743693979734,9.18,114.01,113.98,30.67829394]
[1743693980038,9.18,114.01,113.99,8.7726]
[1743693980747,30.67829394,114.04,113.99,61.38259394]
[1743693980910,9.18,114.03,114.0,30.67829394]
[1743693981837,9.18,114.03,114.01,30.82045551]
[1743693982022,8.0645,114.08,114.02,39.44859394]
[1743693982226,9.16,114.07,114.03,30.82045551]
[1743693982825,37.12249394,114.08,114.03,30.82045551]
[1743693982826,9.16,114.06,114.03,30.82045551]
[1743693983018,9.16,114.06,114.04,30.67829394]
[1743693983225,135.7,114.14,114.05,30.67829394]
[1743693983436,135.7,114.14,114.03,30.82045551]
[1743693983437,30.67829394,114.08,114.03,30.82045551]
[1743693983625,30.67829394,114.06,114.02,30.6962]
[1743693983834,9.16,114.08,114.02,61.37449394]
[1743693984038,39.83829394,114.08,114.04,8.7688]
[1743693984561,9.16,114.08,114.04,30.82045551]
[1743693984960,9.16,114.11,114.07,30.67829394]
[1743693985842,39.83829394,114.11,114.07,30.67829394]
[1743693986035,48.60179394,114.11,114.07,8.7665]
[1743693986260,30.67829394,114.08,114.03,21.924]
[1743693986444,9.16,114.07,114.03,52.60229394]
[1743693986643,9.16,114.07,114.04,30.67829394]
[1743693987048,9.16,114.07,114.05,30.67829394]
[1743693987458,9.16,114.07,114.05,39.44589394]
[1743693987774,9.16,114.07,114.05,8.7676]
[1743693988367,9.16,114.07,114.01,8.7711]
[1743693988533,30.67829394,114.06,113.98,30.67829394]
[1743693988858,30.67829394,114.06,114.01,30.67829394]
[1743693989032,30.67829394,114.05,114.0,30.67829394]
[1743693989365,30.67829394,114.04,113.99,30.67829394]
[1743693989561,39.83829394,114.03,113.98,39.45109394]